bitfinex/quotes_ETHUSD_20240926
["timestamp","ask_amount","ask_price","bid_price","bid_amount"]
[1727315625276,0.8315,2587.8,2587.7,0.03527741]
[1727315625491,0.8315,2587.8,2587.5,3.86471]
[1727315625682,0.8315,2587.8,2587.7,0.03527741]
[1727315625976,4.94194771,2587.8,2587.7,0.03527741]
[1727315626177,8.80622771,2587.8,2587.4,0.0370305]
[1727315626477,3.64089471,2587.6,2587.5,0.03533392]
[1727315626863,8.80622771,2587.8,2587.5,0.03533392]
[1727315627376,4.94194771,2587.8,2587.5,0.03533392]
[1727315627556,3.64089471,2587.6,2587.5,0.03533392]
[1727315628686,4.94194771,2587.8,2587.5,0.03533392]
[1727315628884,8.80625771,2587.8,2587.5,0.03533392]
[1727315629479,0.40440734,2589.6,2588.6,7.72612]
[1727315629663,0.40440734,2589.6,2589.5,3.86174]
[1727315629989,0.005,2590.7,2589.9,3.86115]
[1727315630226,0.005,2590.7,2589.9,5.29590688]
[1727315630351,0.4061954,2590.0,2589.9,5.29590688]
[1727315630553,0.005,2590.0,2589.9,5.29590688]
[1727315632396,0.005,2590.0,2589.9,5.21870072]
[1727315632890,0.005,2590.0,2589.9,5.183395]
[1727315638176,0.005,2590.0,2589.9,8.183395]
[1727315641503,0.005,2590.0,2589.9,5.183395]
[1727315641739,0.005,2590.0,2589.9,5.26060019]
[1727315643935,0.0370305,2590.5,2589.9,27.94060019]
[1727315644245,0.0370305,2592.0,2591.1,3.85936]
[1727315645206,3.8950705,2592.0,2591.1,3.85936]
[1727315645803,7.7532005,2592.0,2591.1,3.85936]
[1727315646119,0.81,2591.7,2591.1,3.93653129]
[1727315646497,4.66852,2591.7,2591.1,3.85936]
[1727315646696,0.81,2591.7,2591.1,3.85936]
[1727315646927,8.30937471,2591.7,2591.0,3.85942]
[1727315647168,8.30937471,2591.7,2591.1,3.85936]
[1727315647466,8.30937471,2591.7,2591.0,3.85942]
[1727315647650,3.85864,2591.6,2590.8,3.85976]
[1727315647860,3.85892,2591.4,2590.8,3.85976]
[1727315648165,3.85912,2591.3,2590.6,3.86004]
[1727315648365,0.81,2591.1,2590.6,3.86004]
[1727315648869,0.81,2591.1,2590.7,3.85992]
[1727315649074,0.81,2591.1,2590.6,3.86004]
[1727315652165,3.85966,2590.9,2590.4,3.86025]
[1727315652375,0.466966,2590.9,2590.2,3.86062]
[1727315652674,0.466966,2590.9,2590.2,3.86058]
[1727315652675,4.326726,2590.9,2590.2,3.86058]
[1727315652830,7.96760071,2590.9,2590.3,3.86044]
[1727315653035,5.04252907,2590.8,2590.2,3.86058]
[1727315653341,0.7992,2590.5,2590.0,7.72183]
[1727315653554,0.7992,2590.5,2590.1,3.86082]
[1727315653950,0.7992,2590.5,2590.2,3.86066]
[1727315654128,0.7992,2590.5,2590.0,7.72178]
[1727315654335,0.7992,2590.5,2590.1,3.86071]
[1727315654537,1.47701656,2590.5,2590.1,3.86071]
[1727315654951,0.7992,2590.2,2588.3,1.546964]
[1727315655144,0.7992,2589.9,2589.5,3.86174]
[1727315655374,7.50219471,2589.8,2589.3,3.86204]
[1727315655779,3.86145,2589.7,2589.1,3.8623]
[1727315655947,3.64089471,2589.6,2589.1,3.8623]
[1727315656280,3.64089471,2589.6,2589.1,3.86224]
[1727315656575,3.8613,2589.8,2589.2,3.86214]
[1727315656780,9.02264729,2589.8,2589.1,3.86224]
[1727315656986,5.16121729,2589.8,2589.1,3.86224]
[1727315657348,5.16121729,2589.8,2589.1,7.72448]
[1727315657663,5.16121729,2589.8,2589.2,3.86216]
[1727315658096,3.86146,2589.7,2589.1,3.86224]
[1727315658246,5.16121729,2589.8,2589.2,3.86206]
[1727315658446,3.86148,2589.7,2589.1,4.63472]
[1727315658647,3.86148,2589.7,2589.1,8.49697]
[1727315658991,9.02263729,2589.8,2589.2,3.8621]
[1727315659174,0.7992,2589.9,2589.5,3.86172]
[1727315659380,0.7992,2589.9,2589.4,3.86185]
[1727315660158,0.7992,2589.9,2589.5,3.86173]
[1727315660342,0.7992,2589.9,2589.4,3.86185]
[1727315660544,0.7992,2589.9,2589.5,3.86173]
[1727315660745,0.7992,2589.9,2589.5,3.86165]
[1727315661069,0.7992,2589.9,2589.4,3.86179]
[1727315661791,1.923222,2589.9,2589.4,3.86179]
[1727315662451,0.7992,2589.9,2589.4,3.86179]
[1727315662951,4.66036,2589.9,2589.4,3.86179]
[1727315663353,0.7992,2589.9,2589.4,7.72359]
[1727315663549,0.7992,2589.9,2589.4,3.86179]
[1727315663958,2.37098329,2589.9,2589.4,3.86179]
[1727315665851,2.37098329,2589.9,2589.4,7.7236]
[1727315666043,2.37098329,2589.9,2589.4,3.86179]
[1727315666250,2.37098329,2589.9,2589.4,7.72359]
[1727315666951,2.37098329,2589.9,2589.4,3.86179]
[1727315667256,2.37098329,2589.9,2589.5,3.86172]
[1727315667459,2.37098329,2589.9,2589.5,3.86169]
[1727315668739,4.47761287,2589.7,2588.8,7.44]
[1727315668958,0.8275,2589.5,2589.0,3.86239]
[1727315669118,0.8275,2589.5,2589.1,3.8623]
[1727315669764,0.8275,2589.5,2588.4,7.44]
[1727315669765,0.8275,2589.5,2589.2,3.86207]
[1727315670063,3.86139,2589.8,2589.3,3.86198]
[1727315670360,3.86139,2589.8,2589.3,3.86203]
[1727315671748,3.86139,2589.8,2589.2,3.86207]
[1727315671749,7.72278,2589.8,2589.2,3.86207]
[1727315672063,3.86161,2589.6,2589.0,3.86236]
[1727315672222,3.86161,2589.6,2589.0,7.72476]
[1727315672568,5.24989087,2589.7,2589.0,3.86236]
[1727315673068,0.7769,2589.6,2589.2,3.86211]
[1727315673927,0.7769,2589.6,2589.2,7.72422]
[1727315674154,0.7769,2589.6,2589.2,3.86211]
[1727315674347,0.7769,2589.6,2589.2,3.8621]
[1727315674541,0.7769,2589.6,2589.3,3.86199]
[1727315675165,0.7769,2589.6,2589.2,3.8621]
[1727315675540,0.7769,2589.6,2589.3,3.862]
[1727315678349,3.63863412,2589.5,2589.3,3.862]
[1727315678572,3.63863412,2589.5,2589.2,7.72421]
[1727315679150,0.7769,2589.6,2588.6,4.044]
[1727315679342,0.7769,2589.6,2589.4,3.86179]
[1727315680575,3.63863412,2589.5,2589.0,3.86239]
[1727315680785,3.63863412,2589.5,2589.2,3.8621]
[1727315681088,3.63863412,2589.5,2589.0,3.8624]
[1727315681385,3.63863412,2589.5,2589.1,3.86234]
[1727315682191,3.63863412,2589.5,2589.2,3.8621]
[1727315682662,3.63863412,2589.5,2589.1,7.72452]
[1727315683062,3.63863412,2589.5,2589.1,3.86226]
[1727315683264,4.46633953,2589.5,2589.1,3.86226]
[1727315683787,4.46633953,2589.5,2589.1,7.72451]
[1727315683961,3.63863412,2589.5,2589.1,7.72451]
[1727315684588,3.63863412,2589.5,2589.2,3.86218]
[1727315684965,3.63863412,2589.5,2589.1,3.86223]
[1727315685499,3.0,2589.2,2588.5,0.7588]
[1727315685790,3.63863412,2588.8,2588.5,4.62196]
[1727315685988,3.86257,2589.0,2588.5,0.7588]
[1727315685989,3.63863412,2588.6,2588.5,0.7588]
[1727315686355,3.86257,2589.0,2588.5,0.7588]
[1727315686356,3.63863412,2588.8,2588.5,0.7588]
[1727315689499,3.63863412,2588.8,2588.2,3.9006905]
[1727315690796,3.63863412,2588.8,2588.2,0.0370305]
[1727315690797,3.63863412,2588.6,2588.2,0.0370305]
[1727315691000,3.63863412,2588.4,2588.2,0.0370305]
[1727315692183,7.50179412,2588.6,2588.2,0.0370305]
[1727315693285,3.86241,2589.1,2588.2,0.0370305]
[1727315693286,6.63863412,2588.3,2588.2,0.0370305]
[1727315694086,10.50216412,2588.3,2588.2,0.0370305]
[1727315694473,6.63863412,2588.3,2588.2,0.0370305]
[1727315694793,10.50216412,2588.3,2588.2,0.0370305]
[1727315695368,3.63863412,2588.5,2588.2,0.0370305]
[1727315695611,3.0,2588.5,2588.2,0.0370305]
[1727315695810,7.50181412,2588.6,2588.2,0.0370305]
[1727315695811,3.86318,2588.6,2588.2,0.0370305]
[1727315695985,3.86309,2588.6,2588.2,0.0370305]
[1727315696710,3.86309,2588.6,2588.3,0.7541]
[1727315697219,11.36493412,2588.6,2588.3,0.7541]
[1727315697378,3.86335,2588.5,2588.3,0.7541]
[1727315697877,7.50172412,2588.6,2588.3,0.7541]
[1727315698090,3.86328,2588.5,2588.3,0.7541]
[1727315698973,3.86339,2588.4,2588.3,0.7541]
[1727315699706,3.86353,2588.3,2588.2,0.0370305]
[1727315700596,7.50216412,2588.3,2588.2,0.0370305]
[1727315701080,8.71503053,2588.3,2588.2,0.0370305]
[1727315702209,3.86353,2588.3,2588.2,0.0370305]
[1727315702505,3.86346,2588.4,2588.2,0.0370305]
[1727315702710,3.86346,2588.4,2588.2,0.8414305]
[1727315703002,3.86353,2588.3,2588.2,0.8414305]
[1727315703614,7.50216412,2588.3,2588.2,0.0370305]
[1727315705201,8.30646412,2588.3,2588.2,0.0370305]
[1727315705376,11.30646412,2588.3,2588.2,0.0370305]
[1727315708335,7.66783,2588.3,2588.2,0.0370305]
[1727315708624,7.50216412,2588.3,2588.2,0.0370305]
[1727315708933,7.50216412,2588.3,2588.2,0.07313671]
[1727315709293,8.63872053,2588.3,2588.2,0.07313671]
[1727315710741,8.63872053,2588.3,2588.2,0.0370305]
[1727315711433,3.63863412,2588.3,2588.2,0.0370305]
[1727315711620,3.86295,2588.7,2588.2,0.8208305]
[1727315711821,3.86287,2588.8,2588.2,0.85693671]
[1727315712043,3.86259,2589.0,2588.2,0.85693671]
[1727315712044,3.86228,2589.2,2588.4,0.7667]
[1727315712195,6.58,2589.3,2588.8,0.7667]
[1727315712549,6.58,2589.3,2588.9,0.03572006]
[1727315713027,3.8622,2589.2,2588.9,0.03572006]
[1727315713449,7.7245,2589.2,2588.9,0.03572006]
[1727315713743,7.50112412,2589.0,2588.9,0.03572006]
[1727315714097,7.50112412,2589.0,2588.4,0.8139]
[1727315714315,3.86235,2589.1,2588.5,0.03522108]
[1727315714529,3.86266,2588.9,2588.5,0.03522108]
[1727315714732,3.86235,2589.1,2588.5,0.03522108]
[1727315714937,7.72482,2589.1,2588.5,0.03522108]
[1727315715105,3.86235,2589.1,2588.5,3.89845108]
[1727315715619,3.86272,2588.9,2588.5,0.03522108]
[1727315716020,3.86295,2588.7,2588.5,0.03522108]
[1727315716319,3.86309,2588.6,2588.2,0.7990305]
[1727315716525,8.34325511,2588.7,2588.2,0.7990305]
[1727315716726,3.8635,2588.4,2588.2,0.7990305]
[1727315716895,3.86353,2588.3,2588.2,0.0370305]
[1727315719732,13.00511511,2588.4,2588.2,0.0370305]
[1727315720043,13.00509511,2588.4,2588.2,0.0370305]
[1727315720255,3.86353,2588.3,2588.2,0.0370305]
[1727315722256,0.40398694,2590.9,2589.5,0.55]
[1727315722548,0.40398694,2590.9,2590.3,3.86044]
[1727315722724,50.90326353,2590.8,2590.3,3.86044]
[1727315722929,50.5,2590.8,2590.4,0.03525856]
[1727315723224,50.5,2590.7,2590.3,3.86055]
[1727315723611,50.5,2591.1,2590.1,3.8608]
[1727315723809,55.49029105,2591.1,2590.1,7.72151]
[1727315724044,1.13083105,2591.1,2590.1,3.86071]
[1727315724247,1.13083105,2591.1,2590.2,3.8959109]
[1727315724248,0.50321416,2591.0,2590.2,3.8959109]
[1727315724614,0.50321416,2591.0,2590.2,3.86069]
[1727315725212,0.50321416,2591.0,2590.3,3.86054]
[1727315725552,0.50321416,2591.0,2590.3,3.86045]
[1727315726427,0.50321416,2591.0,2590.4,3.86037]
[1727315726625,0.50321416,2591.0,2590.3,7.7209]
[1727315726841,0.50321416,2591.0,2590.4,3.86038]
[1727315727346,0.50321416,2591.0,2590.4,3.8604]
[1727315727757,0.0420305,2591.2,2590.5,3.86025]
[1727315728052,6.9012505,2591.2,2590.5,3.86025]
[1727315728212,3.85948,2591.1,2590.3,3.86045]
[1727315728414,0.44410817,2591.0,2590.3,3.86045]
[1727315728613,0.0420305,2591.2,2590.4,0.07720387]
[1727315728851,0.0420305,2591.2,2590.7,3.85985]
[1727315729050,0.0420305,2591.2,2590.7,7.71969]
[1727315729547,0.0420305,2591.2,2590.7,3.85984]
[1727315729850,0.0420305,2591.2,2590.7,7.71967]
[1727315730066,0.0420305,2591.2,2590.9,3.85956]
[1727315731047,0.0420305,2591.2,2591.0,3.85949]
[1727315731266,0.0420305,2591.2,2590.9,3.85956]
[1727315734215,0.0420305,2591.2,2591.0,3.8595]
[1727315734567,0.0420305,2591.2,2591.0,0.771906]
[1727315734716,0.0420305,2591.2,2590.9,3.85956]
[1727315736055,0.0420305,2591.2,2590.7,4.245824]
[1727315736251,0.0420305,2591.2,2590.9,3.85963]
[1727315738249,0.0420305,2591.2,2590.7,8.105654]
[1727315738652,0.0420305,2591.2,2590.7,4.245814]
[1727315738857,0.0420305,2591.2,2590.8,0.4245814]
[1727315739655,0.0420305,2591.2,2590.8,4.2843314]
[1727315740037,0.0420305,2591.2,2590.8,0.4245814]
[1727315740347,0.0420305,2591.2,2590.7,3.85983]
[1727315741247,0.0420305,2591.2,2590.7,7.7197]
[1727315741438,0.0420305,2591.2,2590.9,3.85964]
[1727315741617,6.58,2591.3,2591.1,3.85936]
[1727315741618,5.81611245,2591.3,2591.1,3.85936]
[1727315741841,5.81611245,2591.3,2591.2,4.245146]
[1727315742333,5.81611245,2591.3,2591.2,0.385936]
[1727315742816,5.81611245,2591.3,2591.2,4.245146]
[1727315743436,5.04611245,2591.3,2591.2,4.245146]
[1727315745750,5.04611245,2591.3,2591.2,0.385936]
[1727315746427,5.04611245,2591.3,2591.2,4.245146]
[1727315747931,5.04611245,2591.3,2591.1,3.85927]
[1727315748719,5.04611245,2591.3,2591.0,3.85951]
[1727315749956,5.04611245,2591.3,2591.1,3.85928]
[1727315750167,5.04611245,2591.3,2591.2,3.85921]
[1727315750323,0.7906,2592.9,2591.2,12.73853807]
[1727315750522,0.7906,2592.9,2591.9,3.85817]
[1727315750832,3.85723,2592.6,2591.9,3.85817]
[1727315751357,0.7623,2592.3,2591.8,3.8583]
[1727315751662,0.7623,2592.3,2591.9,3.85817]
[1727315752158,0.781,2592.7,2591.9,4.629817]
[1727315752322,3.85722,2592.6,2591.9,4.629817]
[1727315753074,0.781,2592.7,2591.9,5.25697294]
[1727315753221,0.0370305,2592.8,2591.9,8.64427294]
[1727315753418,0.0370305,2592.8,2591.9,8.567117]
[1727315754344,0.0370305,2592.8,2591.9,8.017117]
[1727315754721,3.8938705,2592.8,2591.9,8.017117]
[1727315755266,3.8938705,2592.8,2591.9,7.629817]
[1727315755568,3.8938705,2592.8,2591.9,7.70696407]
[1727315756470,0.0370305,2592.8,2591.9,7.70696407]
[1727315756631,3.8939105,2592.8,2591.9,7.70696407]
[1727315757033,4.68373,2592.6,2591.9,3.771647]
[1727315757771,4.68373,2592.6,2591.9,0.771647]
[1727315757972,8.541,2592.6,2591.9,0.771647]
[1727315758180,3.85729,2592.5,2591.9,0.771647]
[1727315758360,7.7147,2592.5,2591.6,3.85852]
[1727315758549,4.48030511,2592.5,2591.5,0.3873]
[1727315758870,3.85768,2592.3,2591.5,0.3873]
[1727315759238,0.8022305,2592.0,2591.3,3.85896]
[1727315759434,0.8022305,2592.0,2591.3,3.93612736]
[1727315759746,0.8022305,2592.0,2591.4,0.47079754]
[1727315760556,0.8022305,2592.0,2591.4,4.32968754]
[1727315760766,0.8022305,2592.0,2591.4,0.54796486]
[1727315760937,0.0370305,2592.0,2591.4,4.40675486]
[1727315761134,0.0370305,2592.0,2591.5,0.44067549]
[1727315761572,0.0370305,2592.0,2591.6,0.07716612]
[1727315761761,4.63276,2592.3,2591.5,4.37658997]
[1727315761978,4.63276,2592.3,2591.5,0.51783997]
[1727315762138,4.63276,2592.3,2591.6,0.437663]
[1727315762336,3.85788,2592.1,2591.6,0.437663]
[1727315762537,7.71589,2592.1,2591.6,0.437663]
[1727315762736,7.71586,2592.1,2591.4,3.93595316]
[1727315762932,3.85788,2592.1,2591.4,3.93595316]
[1727315763166,3.85826,2591.9,2591.2,3.85916]
[1727315763381,3.85826,2591.9,2591.3,0.685916]
[1727315763741,3.85826,2591.9,2591.3,4.544956]
[1727315763944,7.71653,2591.9,2591.3,0.685916]
[1727315764173,3.85835,2591.8,2591.3,0.685916]
[1727315764386,3.85848,2591.7,2591.2,0.07717005]
[1727315765060,3.85848,2591.7,2591.1,3.9365013]
[1727315765255,3.85826,2591.9,2591.2,3.85913]
[1727315765661,3.85854,2591.7,2591.1,0.0771713]
[1727315765862,3.85854,2591.7,2591.2,1.09157636]
[1727315766164,3.85854,2591.7,2591.1,7.04419925]
[1727315766380,3.85854,2591.7,2591.2,1.09155743]
[1727315766590,3.85854,2591.7,2591.3,1.09334089]
[1727315766879,3.85854,2591.7,2591.2,4.86152724]
[1727315767079,3.85854,2591.7,2591.3,1.09315444]
[1727315767278,3.85854,2591.7,2591.2,4.86152724]
[1727315767472,3.85854,2591.7,2591.3,1.0931584]
[1727315767668,3.85854,2591.7,2591.4,2.73624072]
[1727315767870,3.85854,2591.7,2591.5,1.0931584]
[1727315768181,3.85886,2591.5,2591.1,0.79205115]
[1727315768394,3.85886,2591.5,2591.2,2.7391905]
[1727315768548,3.85886,2591.5,2591.0,0.79205115]
[1727315768549,3.85892,2591.4,2591.0,0.79205115]
[1727315768750,3.85921,2591.2,2591.1,1.09609032]
[1727315768956,3.85921,2591.2,2590.7,0.79205115]
[1727315768957,3.85923,2591.2,2590.7,0.79205115]
[1727315769297,3.85937,2591.1,2590.8,2.74102137]
[1727315769588,3.85937,2591.1,2590.6,4.65214115]
[1727315769790,3.85937,2591.1,2590.7,2.74080395]
[1727315769994,3.85937,2591.1,2590.6,7.74860417]
[1727315770156,3.85937,2591.1,2590.7,1.09633316]
[1727315770353,3.85923,2591.2,2590.6,7.74850417]
[1727315770557,3.85939,2591.1,2590.7,1.09641931]
[1727315770786,3.85939,2591.1,2590.6,6.95645302]
[1727315770985,3.85923,2591.2,2590.7,2.74169465]
[1727315771171,4.61924,2591.3,2590.8,4.95683976]
[1727315771464,4.61924,2591.3,2590.9,1.09682882]
[1727315771676,4.61924,2591.3,2590.7,1.09072347]
[1727315771854,4.61924,2591.3,2590.8,2.74204585]
[1727315772056,4.61924,2591.3,2590.7,1.88277462]
[1727315772293,3.85901,2591.4,2590.8,6.6020171]
[1727315772450,3.85901,2591.4,2590.8,7.71952]
[1727315772653,3.85901,2591.4,2590.8,3.85973]
[1727315773462,3.85901,2591.4,2590.9,1.09789765]
[1727315773661,3.85901,2591.4,2590.8,3.85973]
[1727315774490,3.85921,2591.3,2590.7,4.65187115]
[1727315774701,3.85921,2591.3,2590.8,1.09838834]
[1727315774887,3.85915,2591.3,2590.7,3.85982]
[1727315775058,3.85915,2591.3,2590.8,1.09844025]
[1727315775381,3.85929,2591.2,2590.7,0.96999679]
[1727315775578,3.85915,2591.3,2590.8,1.09836472]
[1727315775779,3.85915,2591.3,2590.3,1.5841023]
[1727315775780,0.7994,2590.9,2590.4,4.65235115]
[1727315776099,0.7994,2590.9,2590.5,4.95873222]
[1727315776256,0.7994,2590.9,2590.4,7.15634279]
[1727315776257,0.7994,2590.9,2590.4,3.8603]
[1727315776459,0.7994,2590.9,2590.5,3.86024]
[1727315776697,4.65883,2591.1,2590.5,3.86024]
[1727315776973,4.65883,2591.1,2590.5,7.72037]
[1727315777172,4.65883,2591.1,2590.6,3.86009]
[1727315777403,4.65883,2591.1,2590.6,0.772022]
[1727315778368,0.7994,2591.1,2590.3,3.86044]
[1727315778676,0.7994,2591.1,2590.5,3.86011]
[1727315778899,0.7994,2591.1,2590.7,3.85994]
[1727315779165,3.85956,2591.0,2590.5,3.86011]
[1727315779366,0.7994,2591.1,2590.5,4.246121]
[1727315779771,4.65884,2591.1,2590.5,4.246121]
[1727315780173,0.7994,2591.1,2590.6,3.85997]
[1727315780697,0.7994,2591.1,2590.5,4.246121]
[1727315780916,4.65884,2591.1,2590.6,0.4246121]
[1727315782037,8.51829,2591.1,2590.6,0.4246121]
[1727315782198,4.65884,2591.1,2590.5,7.72028]
[1727315782506,8.51829,2591.1,2590.5,3.86011]
[1727315782801,4.65884,2591.1,2590.5,3.86011]
[1727315783007,8.51829,2591.1,2590.5,3.86011]
[1727315783205,3.85951,2591.0,2590.5,3.86011]
[1727315783767,5.57275451,2591.1,2590.5,3.86011]
[1727315783768,4.65884,2591.1,2590.6,3.8601]
[1727315784190,0.7994,2591.1,2590.7,3.85994]
[1727315785623,4.65876,2591.1,2590.5,3.86018]
[1727315785819,4.65876,2591.1,2590.6,4.246018]
[1727315785972,4.65876,2591.1,2590.6,0.386018]
[1727315786175,0.7994,2591.1,2590.7,3.85995]
[1727315786612,0.7994,2591.1,2590.6,0.386018]
[1727315786909,0.7994,2591.1,2590.7,7.71969]
[1727315787077,0.7994,2591.1,2590.8,3.85977]
[1727315787276,6.85878,2591.5,2591.2,3.85909]
[1727315787277,0.8226,2591.5,2591.2,3.85909]
[1727315787477,8.26049249,2591.9,2591.2,3.85909]
[1727315788194,4.40230249,2591.9,2591.3,3.85905]
[1727315788507,0.7687,2591.9,2591.2,3.85909]
[1727315788717,0.7687,2591.9,2591.2,7.71823]
[1727315788882,4.62689,2591.9,2591.2,3.85909]
[1727315789083,5.23973778,2591.9,2591.2,3.85909]
[1727315789913,5.23973778,2591.9,2591.3,3.85902]
[1727315789914,1.38154778,2591.9,2591.3,3.85902]
[1727315790279,0.7687,2591.9,2591.2,3.85909]
[1727315790724,4.62696,2591.9,2591.2,3.85909]
[1727315791014,0.7537,2591.7,2591.0,3.85943]
[1727315791308,0.7537,2591.7,2590.9,3.85957]
[1727315791309,8.47085,2591.7,2590.9,3.85957]
[1727315791522,4.61226,2591.7,2591.0,0.385957]
[1727315791892,4.61226,2591.7,2591.0,4.245447]
[1727315792912,0.7537,2591.7,2591.1,3.85935]
[1727315794230,0.7537,2591.7,2591.3,3.85898]
[1727315794412,0.7537,2591.7,2591.1,0.4245307]
[1727315794725,0.7537,2591.7,2590.9,0.07717676]
[1727315794726,0.7537,2591.7,2591.2,7.71817]
[1727315795023,0.7537,2591.7,2591.3,3.85898]
[1727315795490,10.40157249,2592.1,2591.4,3.85885]
[1727315795694,4.62054,2592.0,2591.3,3.85898]
[1727315796005,4.62054,2592.0,2591.1,3.85923]
[1727315796006,0.7625,2591.8,2591.1,3.85923]
[1727315796195,4.62082,2591.8,2591.1,3.85923]
[1727315796390,8.47922,2591.8,2591.1,3.85923]
[1727315796716,4.68622,2591.6,2590.9,3.85957]
[1727315797053,4.68622,2591.6,2591.0,3.85949]
[1727315797178,0.8276,2591.6,2591.0,3.85949]
[1727315797611,0.8013,2591.5,2590.9,3.85957]
[1727315797802,8.29367249,2591.5,2590.8,3.8598]
[1727315798824,0.8141,2591.4,2590.8,3.8598]
[1727315798978,0.8141,2591.2,2590.6,3.86007]
[1727315799814,4.62077,2591.1,2590.5,19.68]
[1727315800127,0.7613,2591.1,2590.6,3.8601]
[1727315800417,0.7613,2591.1,2590.6,2.740025]
[1727315801231,0.7613,2591.1,2590.7,3.85992]
[1727315804940,0.7613,2591.1,2590.6,3.8601]
[1727315808630,0.7613,2591.1,2590.5,7.7203]
[1727315809014,3.85943,2591.1,2590.5,3.86014]
[1727315809244,0.8131,2590.9,2590.3,3.86045]
[1727315809551,0.8131,2590.9,2590.1,3.8608]
[1727315809552,4.67276,2590.9,2590.1,3.8608]
[1727315809838,8.30636249,2590.9,2590.2,3.86066]
[1727315810050,8.30636249,2590.9,2590.1,3.8608]
[1727315810051,5.140036,2590.9,2590.1,3.8608]
[1727315810199,0.8131,2590.9,2590.3,3.86055]
[1727315810392,0.8131,2590.9,2590.1,0.07720603]
[1727315810637,0.8131,2590.9,2590.5,3.86013]
[1727315811198,0.8131,2590.9,2590.5,7.7203]
[1727315811616,0.8131,2590.9,2590.5,4.63216]
[1727315811836,0.8131,2590.9,2590.5,3.86013]
[1727315817063,0.8131,2590.9,2590.3,7.72093]
[1727315817263,0.8131,2590.9,2590.4,3.86028]
[1727315817484,0.8131,2590.9,2590.4,3.93748118]
[1727315818166,0.8131,2590.9,2590.5,7.72034]
[1727315818477,0.8131,2590.9,2590.5,3.86017]
[1727315819869,0.8131,2590.9,2590.6,3.86008]
[1727315820088,0.8131,2590.9,2590.5,3.86016]
[1727315820603,3.85848,2591.7,2590.5,3.86016]
[1727315820604,0.8166,2591.2,2590.8,3.8597]
[1727315820812,0.8166,2591.2,2590.7,3.85996]
[1727315821012,0.8166,2592.2,2591.3,3.85904]
[1727315821302,2.91,2592.1,2591.3,3.85904]
[1727315821515,6.76796,2592.1,2591.3,7.71803]
[1727315821825,6.76796,2592.1,2591.4,4.6383602]
[1727315822124,2.91,2592.1,2591.5,3.85869]
[1727315822319,2.91,2592.1,2592.0,3.85802]
[1727315822483,2.91,2592.2,2592.0,7.71604]
[1727315822662,2.91,2592.2,2592.0,3.85802]
[1727315823306,2.91,2592.2,2592.0,7.71596]
[1727315823482,2.91,2592.2,2592.0,3.85794]
[1727315823669,2.91,2592.2,2592.0,7.71588]
[1727315824012,2.91,2592.2,2592.1,3.85787]
[1727315824589,3.7179,2592.4,2592.1,3.85787]
[1727315824802,3.7179,2592.4,2592.2,3.85772]
[1727315825379,3.7179,2592.4,2592.2,3.85763]
[1727315825875,3.7179,2592.4,2592.1,0.771581]
[1727315826298,3.7179,2592.4,2592.0,3.85794]
[1727315827261,3.7179,2592.4,2591.8,3.85819]
[1727315827728,3.7179,2592.4,2591.8,7.71643]
[1727315827924,3.7179,2592.4,2591.8,3.85819]
[1727315828243,0.824,2592.3,2591.8,3.85819]
[1727315828416,0.824,2592.3,2591.8,7.71643]
[1727315828612,0.824,2592.3,2591.8,3.85819]
[1727315829020,0.824,2592.3,2591.9,3.85807]
[1727315829376,0.824,2592.3,2591.8,3.85819]
[1727315831140,1.94651025,2592.3,2591.7,3.85845]
[1727315831313,5.80408025,2592.3,2591.6,3.85853]
[1727315831513,5.80408025,2592.3,2591.7,3.85838]
[1727315831841,5.80408025,2592.3,2591.6,7.71707]
[1727315832225,0.87140803,2592.2,2591.6,7.71707]
[1727315832563,0.87140803,2592.2,2591.7,3.85842]
[1727315832915,0.7598,2592.1,2591.6,3.85853]
[1727315833145,0.7598,2592.1,2591.6,3.85861]
[1727315834070,0.7598,2592.1,2591.6,7.71722]
[1727315835315,0.7598,2592.1,2591.6,7.71713]
[1727315835713,0.7598,2592.1,2591.6,7.71705]
[1727315836262,0.7598,2592.1,2591.6,3.85852]
[1727315836444,1.512554,2592.1,2591.6,3.85852]
[1727315836955,1.512554,2592.1,2591.6,7.71704]
[1727315837142,0.7598,2592.1,2591.6,7.71704]
[1727315837329,0.7598,2592.1,2591.6,7.71705]
[1727315837647,0.7598,2592.1,2591.6,7.71706]
[1727315838014,0.7598,2592.1,2591.6,3.85852]
[1727315838425,0.7598,2592.1,2591.7,3.85845]
[1727315838628,0.7598,2592.1,2591.6,3.85852]
[1727315838863,0.7598,2592.1,2591.7,3.85846]
[1727315839068,0.7598,2592.1,2591.8,3.85824]
[1727315839432,0.7598,2592.1,2591.7,3.85846]
[1727315839433,0.7598,2592.1,2591.9,3.85814]
[1727315840030,0.7598,2592.1,2591.8,3.8583]
[1727315840236,0.7598,2592.1,2591.8,3.85829]
[1727315840458,0.7598,2592.1,2591.7,4.244306]
[1727315840628,0.7598,2592.1,2591.7,4.244226]
[1727315840941,0.7598,2592.1,2591.7,3.85838]
[1727315841433,0.7598,2592.1,2591.7,7.71673]
[1727315841634,0.7598,2592.1,2591.7,3.85835]
[1727315841867,0.7598,2592.1,2591.7,7.71669]
[1727315842201,0.7598,2592.1,2591.7,3.85834]
[1727315843862,0.7598,2592.1,2591.5,3.85868]
[1727315844177,0.7598,2592.1,2591.6,3.85857]
[1727315844743,4.61769,2592.1,2591.4,6.42479739]
[1727315844943,8.47567,2592.1,2591.4,10.28356739]
[1727315845138,4.61769,2592.1,2591.4,3.85877]
[1727315845374,8.47567,2592.1,2591.4,3.85877]
[1727315845539,8.47567,2592.1,2591.4,7.7176]
[1727315845894,0.7522,2591.9,2591.4,3.85877]
[1727315846286,0.7522,2591.9,2591.4,3.85882]
[1727315846499,4.61046,2591.9,2591.3,3.85906]
[1727315846949,3.85834,2591.8,2591.2,10.19709839]
[1727315847149,3.85834,2591.8,2591.2,14.05623839]